[Event "Betsys MČR v online bleskovém šachu 2021"]
[Site "Chess.com"]
[Date "2021.04.17"]
[Round "8"]
[White "Countryside_58"]
[Black "tryskomys"]
[Result "1-0"]
[WhiteElo "2404"]
[BlackElo "1556"]
[TimeControl "180+1"]
[EndTime "10:19:17 PDT"]
[Termination "Uživatel Countryside_58 zvítězil po vzdání soupeře"]

1. h4 {[%clk 0:03:00.9]} 1... d6 {[%clk 0:02:51.2]} 2. h5 {[%clk 0:03:01.8]}
2... Nd7 {[%clk 0:02:48.3]} 3. d4 {[%clk 0:03:01.8]} 3... e5 {[%clk 0:02:46.9]}
4. Nf3 {[%clk 0:03:00.5]} 4... e4 {[%clk 0:02:45.3]} 5. Ng1 {[%clk 0:03:00.2]}
5... d5 {[%clk 0:02:42.8]} 6. c4 {[%clk 0:02:59.3]} 6... c6 {[%clk 0:02:40.4]}
7. Nc3 {[%clk 0:02:59.3]} 7... Ngf6 {[%clk 0:02:37]} 8. h6 {[%clk 0:02:59.3]}
8... g6 {[%clk 0:02:36.2]} 9. Bg5 {[%clk 0:02:59.1]} 9... Be7 {[%clk 0:02:33.7]}
10. e3 {[%clk 0:02:59.2]} 10... Nb6 {[%clk 0:02:27.1]} 11. c5 {[%clk 0:02:58.1]}
11... Nbd7 {[%clk 0:02:25]} 12. b4 {[%clk 0:02:57.5]} 12... a6 {[%clk
0:02:24.1]} 13. a4 {[%clk 0:02:56.8]} 13... Nf8 {[%clk 0:02:18.1]} 14. b5 {[%clk
0:02:53.6]} 14... Ne6 {[%clk 0:02:15.3]} 15. Bxf6 {[%clk 0:02:53.6]} 15... Bxf6
{[%clk 0:02:14.7]} 16. Nge2 {[%clk 0:02:46.1]} 16... O-O {[%clk 0:02:13.1]} 17.
g3 {[%clk 0:02:45.5]} 17... Bd7 {[%clk 0:02:01.9]} 18. bxa6 {[%clk 0:02:42]}
18... Rxa6 {[%clk 0:01:56.7]} 19. Nf4 {[%clk 0:02:36.8]} 19... Nxf4 {[%clk
0:01:53.7]} 20. Bxa6 {[%clk 0:02:26.9]} 20... Qa5 {[%clk 0:01:33.7]} 21. Qd2
{[%clk 0:02:12.6]} 21... Qxa6 {[%clk 0:01:09.4]} 22. gxf4 {[%clk 0:02:12.1]}
22... Be7 {[%clk 0:01:05.1]} 23. Qe2 {[%clk 0:02:07]} 23... Qa8 {[%clk
0:01:04.2]} 24. a5 {[%clk 0:01:59.5]} 24... Bd8 {[%clk 0:01:02.7]} 25. Qa2
{[%clk 0:01:55.2]} 25... Re8 {[%clk 0:01:01.5]} 26. a6 {[%clk 0:01:53.6]} 26...
bxa6 {[%clk 0:01:01]} 27. Qxa6 {[%clk 0:01:53.8]} 27... Qb8 {[%clk 0:01:01.1]}
28. Rb1 {[%clk 0:01:53.2]} 28... Qc7 {[%clk 0:00:57.3]} 29. Rb7 {[%clk
0:01:52.2]} 29... Qc8 {[%clk 0:00:57.2]} 30. Qa7 {[%clk 0:01:50.8]} 30... Be6
{[%clk 0:00:55.5]} 31. Rb8 {[%clk 0:01:49.8]} 31... Qd7 {[%clk 0:00:49.8]} 32.
Qxd7 {[%clk 0:01:49.6]} 32... Bxd7 {[%clk 0:00:50]} 33. Kd2 {[%clk 0:01:50.1]}
33... Kf8 {[%clk 0:00:46.3]} 34. Ra1 {[%clk 0:01:49.5]} 34... Ke7 {[%clk
0:00:46.2]} 35. Ra7 {[%clk 0:01:47.4]} 35... f6 {[%clk 0:00:44]} 36. Rbb7 {[%clk
0:01:45.8]} 1-0

[Event "Betsys MČR v online bleskovém šachu 2021"]
[Site "Chess.com"]
[Date "2021.04.17"]
[Round "8"]
[White "JosefBara"]
[Black "Terilka"]
[Result "0-1"]
[WhiteElo "1304"]
[BlackElo "1529"]
[TimeControl "180+1"]
[EndTime "10:19:18 PDT"]
[Termination "Uživatel Terilka zvítězil matem"]

1. d4 {[%clk 0:03:00.9]} 1... Nf6 {[%clk 0:02:59.5]} 2. c4 {[%clk 0:03:00.5]}
2... g6 {[%clk 0:02:59.2]} 3. Nc3 {[%clk 0:03:00]} 3... d5 {[%clk 0:02:59.4]} 4.
Nf3 {[%clk 0:02:59.9]} 4... Bg7 {[%clk 0:02:58.4]} 5. Bg5 {[%clk 0:02:58.4]}
5... Ne4 {[%clk 0:02:58]} 6. Rc1 {[%clk 0:02:53.9]} 6... O-O {[%clk 0:02:51.2]}
7. Nxd5 {[%clk 0:02:50.6]} 7... Nxg5 {[%clk 0:02:49.8]} 8. Nxg5 {[%clk
0:02:48.5]} 8... e6 {[%clk 0:02:49.7]} 9. Nc3 {[%clk 0:02:45.2]} 9... Qxg5
{[%clk 0:02:48.2]} 10. g3 {[%clk 0:02:38.1]} 10... Nc6 {[%clk 0:02:42.7]} 11.
Bg2 {[%clk 0:02:37.8]} 11... Nxd4 {[%clk 0:02:40]} 12. O-O {[%clk 0:02:31.7]}
12... Rd8 {[%clk 0:02:27]} 13. Qa4 {[%clk 0:02:26.9]} 13... Bd7 {[%clk
0:02:19.5]} 14. Qb4 {[%clk 0:02:24.6]} 14... Nc6 {[%clk 0:01:59.7]} 15. Qb3
{[%clk 0:02:23.3]} 15... Na5 {[%clk 0:01:49.6]} 16. Qc2 {[%clk 0:02:19.2]} 16...
Bc6 {[%clk 0:01:40.2]} 17. Bxc6 {[%clk 0:02:18.1]} 17... Nxc6 {[%clk 0:01:41.1]}
18. Ne4 {[%clk 0:02:17.4]} 18... Qe5 {[%clk 0:01:33.6]} 19. b3 {[%clk
0:02:11.2]} 19... Nd4 {[%clk 0:01:31.8]} 20. Qb1 {[%clk 0:02:07.2]} 20... Nxe2+
{[%clk 0:01:29.7]} 21. Kg2 {[%clk 0:02:02.9]} 21... Nxc1 {[%clk 0:01:29.3]} 22.
Rxc1 {[%clk 0:02:01.9]} 22... Rd4 {[%clk 0:01:26.1]} 23. f3 {[%clk 0:01:58]}
23... Rad8 {[%clk 0:01:24]} 24. Re1 {[%clk 0:01:51]} 24... Qa5 {[%clk
0:01:16.7]} 25. c5 {[%clk 0:01:41.8]} 25... b6 {[%clk 0:00:59.4]} 26. cxb6
{[%clk 0:01:39.9]} 26... axb6 {[%clk 0:01:00.3]} 27. Rc1 {[%clk 0:01:33.9]}
27... c5 {[%clk 0:00:59.7]} 28. Ng5 {[%clk 0:01:27]} 28... Qd2+ {[%clk
0:00:56.2]} 29. Kh3 {[%clk 0:01:26]} 29... Qxg5 {[%clk 0:00:55.9]} 30. f4 {[%clk
0:01:24.2]} 30... Qh5+ {[%clk 0:00:52.9]} 31. Kg2 {[%clk 0:01:23.5]} 31... Rd2+
{[%clk 0:00:52.3]} 32. Kf1 {[%clk 0:01:23]} 32... Qe2+ {[%clk 0:00:51.8]} 33.
Kg1 {[%clk 0:01:22.6]} 33... Qg2# {[%clk 0:00:52.7]} 0-1

[Event "Betsys MČR v online bleskovém šachu 2021"]
[Site "Chess.com"]
[Date "2021.04.17"]
[Round "8"]
[White "YawningBagel"]
[Black "fera_v"]
[Result "1-0"]
[WhiteElo "1985"]
[BlackElo "2228"]
[TimeControl "180+1"]
[EndTime "10:19:22 PDT"]
[Termination "Uživatel YawningBagel zvítězil po vzdání soupeře"]

1. d4 {[%clk 0:03:00.9]} 1... Nf6 {[%clk 0:02:57.7]} 2. c4 {[%clk 0:03:00.4]}
2... g6 {[%clk 0:02:58.1]} 3. Nc3 {[%clk 0:03:00.6]} 3... Bg7 {[%clk 0:02:58.5]}
4. e4 {[%clk 0:03:01.1]} 4... d6 {[%clk 0:02:59]} 5. Nf3 {[%clk 0:03:01.1]} 5...
O-O {[%clk 0:02:59.4]} 6. Be2 {[%clk 0:03:00.8]} 6... Na6 {[%clk 0:03:00]} 7.
Bg5 {[%clk 0:03:00]} 7... c5 {[%clk 0:02:59.8]} 8. d5 {[%clk 0:02:59.4]} 8... e6
{[%clk 0:02:55]} 9. O-O {[%clk 0:02:59.1]} 9... exd5 {[%clk 0:02:54.9]} 10. exd5
{[%clk 0:02:58.2]} 10... Nc7 {[%clk 0:02:53.2]} 11. h3 {[%clk 0:02:57.6]} 11...
a6 {[%clk 0:02:52.6]} 12. Ne4 {[%clk 0:02:51.8]} 12... Re8 {[%clk 0:02:48]} 13.
Nxf6+ {[%clk 0:02:51.9]} 13... Bxf6 {[%clk 0:02:47.2]} 14. Bxf6 {[%clk
0:02:52.5]} 14... Qxf6 {[%clk 0:02:47.3]} 15. Qc2 {[%clk 0:02:49.7]} 15... b5
{[%clk 0:02:45.6]} 16. b3 {[%clk 0:02:48.2]} 16... Bd7 {[%clk 0:02:38.4]} 17.
Rfe1 {[%clk 0:02:35.1]} 17... b4 {[%clk 0:02:32.1]} 18. Nd2 {[%clk 0:02:24.9]}
18... Re5 {[%clk 0:01:52.4]} 19. Qb2 {[%clk 0:02:10.8]} 19... Rae8 {[%clk
0:01:46.7]} 20. Nf3 {[%clk 0:02:06]} 20... Rf5 {[%clk 0:01:42.1]} 21. Qxf6
{[%clk 0:02:02.4]} 21... Rxf6 {[%clk 0:01:42.6]} 22. Bd3 {[%clk 0:01:51.9]}
22... Bxh3 {[%clk 0:01:35]} 23. Rxe8+ {[%clk 0:01:49]} 23... Nxe8 {[%clk
0:01:33.9]} 24. Re1 {[%clk 0:01:48]} 24... Bd7 {[%clk 0:01:31.9]} 25. Re7 {[%clk
0:01:45.2]} 25... Kf8 {[%clk 0:01:12.7]} 26. Rxd7 {[%clk 0:01:43.2]} 26... Rf4
{[%clk 0:01:08.7]} 27. Kf1 {[%clk 0:01:37]} 27... h5 {[%clk 0:01:07.2]} 28. Ke2
{[%clk 0:01:31.8]} 28... h4 {[%clk 0:01:03.9]} 29. Ng5 {[%clk 0:01:29.5]} 29...
Kg7 {[%clk 0:00:49.6]} 30. Ne6+ {[%clk 0:01:17.8]} 1-0

[Event "Betsys MČR v online bleskovém šachu 2021"]
[Site "Chess.com"]
[Date "2021.04.17"]
[Round "8"]
[White "Fafin1"]
[Black "lupinek23"]
[Result "1-0"]
[WhiteElo "1395"]
[BlackElo "1593"]
[TimeControl "180+1"]
[EndTime "10:19:22 PDT"]
[Termination "Uživatel Fafin1 zvítězil po vzdání soupeře"]

1. e4 {[%clk 0:03:00.9]} 1... e5 {[%clk 0:02:58.9]} 2. Nf3 {[%clk 0:02:59.5]}
2... Nc6 {[%clk 0:02:57.2]} 3. Bb5 {[%clk 0:02:57.3]} 3... d6 {[%clk 0:02:56.5]}
4. d3 {[%clk 0:02:56.9]} 4... Nf6 {[%clk 0:02:56.4]} 5. h3 {[%clk 0:02:56.7]}
5... h6 {[%clk 0:02:56.1]} 6. O-O {[%clk 0:02:56.4]} 6... Bd7 {[%clk 0:02:56.2]}
7. Be3 {[%clk 0:02:56.1]} 7... Be7 {[%clk 0:02:56.2]} 8. c4 {[%clk 0:02:54.9]}
8... O-O {[%clk 0:02:55.8]} 9. Nc3 {[%clk 0:02:54.4]} 9... a6 {[%clk 0:02:55.8]}
10. Ba4 {[%clk 0:02:53.1]} 10... Nd4 {[%clk 0:02:55]} 11. Bxd4 {[%clk
0:02:51.5]} 11... Bxa4 {[%clk 0:02:52.5]} 12. Nxa4 {[%clk 0:02:48.8]} 12... exd4
{[%clk 0:02:52.5]} 13. Nxd4 {[%clk 0:02:47.5]} 13... c5 {[%clk 0:02:51.6]} 14.
Nf3 {[%clk 0:02:45.9]} 14... Qd7 {[%clk 0:02:51.5]} 15. b3 {[%clk 0:02:42.1]}
15... Nh5 {[%clk 0:02:48.2]} 16. Nd2 {[%clk 0:02:36.5]} 16... Nf4 {[%clk
0:02:47.5]} 17. Kh2 {[%clk 0:02:31.6]} 17... Nxd3 {[%clk 0:02:41.9]} 18. Nb6
{[%clk 0:02:26.2]} 18... Qe6 {[%clk 0:02:33.5]} 19. Nxa8 {[%clk 0:02:25.6]}
19... Rxa8 {[%clk 0:02:32.8]} 20. Qf3 {[%clk 0:02:12.3]} 20... Bg5 {[%clk
0:02:25.7]} 21. Qxd3 {[%clk 0:02:09.8]} 21... Bf4+ {[%clk 0:02:18.7]} 22. g3
{[%clk 0:02:07.5]} 22... Be5 {[%clk 0:02:16]} 23. Nf3 {[%clk 0:02:05.9]} 23...
Bxa1 {[%clk 0:02:14.6]} 24. Rxa1 {[%clk 0:02:03]} 24... Re8 {[%clk 0:02:14.4]}
25. Re1 {[%clk 0:01:59.2]} 25... Qf6 {[%clk 0:02:08.6]} 26. Kg2 {[%clk 0:01:52]}
26... g6 {[%clk 0:02:07.1]} 27. Nd2 {[%clk 0:01:48]} 27... h5 {[%clk 0:02:03.9]}
28. Qd5 {[%clk 0:01:47]} 28... Re5 {[%clk 0:02:00.9]} 29. Qxb7 {[%clk
0:01:45.1]} 29... Qg5 {[%clk 0:01:53.7]} 30. Nf3 {[%clk 0:01:38.2]} 30... Qf6
{[%clk 0:01:39]} 31. Nxe5 {[%clk 0:01:37.7]} 31... Qxe5 {[%clk 0:01:39.2]} 32.
Qxa6 {[%clk 0:01:35.3]} 32... h4 {[%clk 0:01:36.4]} 33. Qc8+ {[%clk 0:01:30.3]}
33... Kh7 {[%clk 0:01:34.8]} 34. g4 {[%clk 0:01:27.6]} 34... Qf4 {[%clk
0:01:32.3]} 35. Qe8 {[%clk 0:01:13.5]} 35... Kg7 {[%clk 0:01:30.3]} 36. e5
{[%clk 0:01:09.4]} 36... Qd2 {[%clk 0:01:25]} 37. exd6 {[%clk 0:01:05.6]} 37...
Qxd6 {[%clk 0:01:20.2]} 38. Qe5+ {[%clk 0:01:02.6]} 1-0

[Event "Betsys MČR v online bleskovém šachu 2021"]
[Site "Chess.com"]
[Date "2021.04.17"]
[Round "8"]
[White "Rozmetal"]
[Black "BRNOTEACHER"]
[Result "0-1"]
[WhiteElo "2139"]
[BlackElo "2346"]
[TimeControl "180+1"]
[EndTime "10:19:24 PDT"]
[Termination "Uživatel BRNOTEACHER zvítězil po vzdání soupeře"]

1. e4 {[%clk 0:03:00.9]} 1... c6 {[%clk 0:02:59.5]} 2. Nc3 {[%clk 0:02:59.6]}
2... d5 {[%clk 0:03:00.4]} 3. Nf3 {[%clk 0:02:59.9]} 3... Nf6 {[%clk 0:03:00]}
4. e5 {[%clk 0:02:58.9]} 4... Ne4 {[%clk 0:02:58.8]} 5. d4 {[%clk 0:02:58.3]}
5... Nxc3 {[%clk 0:02:54.1]} 6. bxc3 {[%clk 0:02:57.5]} 6... c5 {[%clk
0:02:53.5]} 7. Bd3 {[%clk 0:02:49.1]} 7... c4 {[%clk 0:02:52.4]} 8. Be2 {[%clk
0:02:48.7]} 8... Nc6 {[%clk 0:02:44.1]} 9. O-O {[%clk 0:02:45.4]} 9... h6 {[%clk
0:02:41.8]} 10. h3 {[%clk 0:02:43.7]} 10... Bf5 {[%clk 0:02:40.1]} 11. g4 {[%clk
0:02:43]} 11... Bh7 {[%clk 0:02:39.1]} 12. e6 {[%clk 0:02:42.5]} 12... fxe6
{[%clk 0:02:38.4]} 13. Re1 {[%clk 0:02:42.9]} 13... Qd6 {[%clk 0:02:27.9]} 14.
Bf1 {[%clk 0:02:38.9]} 14... g5 {[%clk 0:02:26.2]} 15. Ne5 {[%clk 0:02:34.9]}
15... Nxe5 {[%clk 0:02:24.4]} 16. dxe5 {[%clk 0:02:24]} 16... Qc7 {[%clk
0:02:20.3]} 17. f4 {[%clk 0:02:19.7]} 17... gxf4 {[%clk 0:02:12.9]} 18. Bxf4
{[%clk 0:02:18.5]} 18... Bg7 {[%clk 0:02:12.9]} 19. Qd2 {[%clk 0:02:16.6]} 19...
O-O-O {[%clk 0:02:08.3]} 20. Bg2 {[%clk 0:02:10.1]} 20... Rdf8 {[%clk
0:02:06.8]} 21. Bg3 {[%clk 0:02:09.1]} 21... Rf7 {[%clk 0:02:00.5]} 22. a4
{[%clk 0:02:00.7]} 22... Bg6 {[%clk 0:01:57]} 23. a5 {[%clk 0:01:59.2]} 23...
Rhf8 {[%clk 0:01:55.5]} 24. a6 {[%clk 0:01:58.3]} 24... b6 {[%clk 0:01:52]} 25.
Rf1 {[%clk 0:01:53.8]} 25... Bxe5 {[%clk 0:01:44.7]} 26. Rxf7 {[%clk 0:01:47.7]}
26... Rxf7 {[%clk 0:01:39.8]} 27. Bxe5 {[%clk 0:01:30.9]} 27... Qxe5 {[%clk
0:01:40.7]} 28. Qxh6 {[%clk 0:01:30.3]} 28... Bxc2 {[%clk 0:01:38]} 29. Rf1
{[%clk 0:01:21.4]} 29... Rxf1+ {[%clk 0:01:34.9]} 30. Bxf1 {[%clk 0:01:20.7]}
30... Qg3+ {[%clk 0:01:21.1]} 31. Bg2 {[%clk 0:01:15.8]} 31... Be4 {[%clk
0:01:21]} 32. Qxe6+ {[%clk 0:01:14.8]} 32... Kd8 {[%clk 0:01:20.5]} 33. Qg8+
{[%clk 0:00:58.2]} 33... Kc7 {[%clk 0:01:19.5]} 0-1

[Event "Betsys MČR v online bleskovém šachu 2021"]
[Site "Chess.com"]
[Date "2021.04.17"]
[Round "8"]
[White "DavidZidlicky"]
[Black "sachovybukowski"]
[Result "1-0"]
[WhiteElo "1741"]
[BlackElo "1957"]
[TimeControl "180+1"]
[EndTime "10:19:26 PDT"]
[Termination "Uživatel DavidZidlicky zvítězil matem"]

1. e4 {[%clk 0:03:00.9]} 1... c5 {[%clk 0:02:59]} 2. Nf3 {[%clk 0:03:00.2]} 2...
d6 {[%clk 0:02:58.9]} 3. Nc3 {[%clk 0:02:59.8]} 3... Nf6 {[%clk 0:02:57.6]} 4.
d4 {[%clk 0:02:59.5]} 4... cxd4 {[%clk 0:02:56.8]} 5. Nxd4 {[%clk 0:02:59.6]}
5... a6 {[%clk 0:02:57.1]} 6. f4 {[%clk 0:02:59.5]} 6... e6 {[%clk 0:02:57.3]}
7. Be2 {[%clk 0:02:53.3]} 7... Be7 {[%clk 0:02:56.7]} 8. O-O {[%clk 0:02:52.1]}
8... Nc6 {[%clk 0:02:56.1]} 9. Nxc6 {[%clk 0:02:49.5]} 9... bxc6 {[%clk
0:02:55.7]} 10. e5 {[%clk 0:02:43.9]} 10... Nd5 {[%clk 0:02:55]} 11. Nxd5 {[%clk
0:02:42.1]} 11... exd5 {[%clk 0:02:54]} 12. b3 {[%clk 0:02:32.7]} 12... O-O
{[%clk 0:02:53.1]} 13. Bb2 {[%clk 0:02:32.3]} 13... Bf5 {[%clk 0:02:47.6]} 14.
Bd3 {[%clk 0:02:16.6]} 14... Qd7 {[%clk 0:02:41.3]} 15. Qf3 {[%clk 0:01:54]}
15... Rfe8 {[%clk 0:02:39.4]} 16. Rae1 {[%clk 0:01:51.8]} 16... Bf8 {[%clk
0:02:37]} 17. Qg3 {[%clk 0:01:47.7]} 17... g6 {[%clk 0:02:22.8]} 18. e6 {[%clk
0:01:35.8]} 18... Bxe6 {[%clk 0:02:16.3]} 19. f5 {[%clk 0:01:31.2]} 19... Qa7+
{[%clk 0:02:03.2]} 20. Kh1 {[%clk 0:01:28.2]} 20... Bd7 {[%clk 0:02:03.2]} 21.
fxg6 {[%clk 0:01:25.1]} 21... hxg6 {[%clk 0:01:52.3]} 22. Bxg6 {[%clk
0:01:19.4]} 22... Rxe1 {[%clk 0:00:49.9]} 23. Bxf7+ {[%clk 0:01:17]} 23... Kh7
{[%clk 0:00:49.6]} 24. Qg8+ {[%clk 0:01:00.1]} 24... Kh6 {[%clk 0:00:46.5]} 25.
Qg6# {[%clk 0:00:59.8]} 1-0

[Event "Betsys MČR v online bleskovém šachu 2021"]
[Site "Chess.com"]
[Date "2021.04.17"]
[Round "8"]
[White "EDA16"]
[Black "tondapesek"]
[Result "0-1"]
[WhiteElo "1136"]
[BlackElo "1111"]
[TimeControl "180+1"]
[EndTime "10:19:27 PDT"]
[Termination "Uživatel tondapesek zvítězil matem"]

1. d4 {[%clk 0:03:00.9]} 1... d5 {[%clk 0:03:00]} 2. c4 {[%clk 0:03:00.6]} 2...
e6 {[%clk 0:02:59.8]} 3. Nc3 {[%clk 0:03:00.4]} 3... Nf6 {[%clk 0:02:59.9]} 4.
Bg5 {[%clk 0:03:00.1]} 4... Bb4 {[%clk 0:02:59.4]} 5. Qc2 {[%clk 0:02:59]} 5...
c6 {[%clk 0:02:57.7]} 6. cxd5 {[%clk 0:02:56.4]} 6... cxd5 {[%clk 0:02:57.4]} 7.
e3 {[%clk 0:02:55.3]} 7... Nc6 {[%clk 0:02:57]} 8. Nf3 {[%clk 0:02:55.2]} 8...
b6 {[%clk 0:02:56.3]} 9. Bb5 {[%clk 0:02:54.3]} 9... Bd7 {[%clk 0:02:56.4]} 10.
O-O {[%clk 0:02:52.4]} 10... Bxc3 {[%clk 0:02:55.4]} 11. Qxc3 {[%clk 0:02:50.6]}
11... Nb8 {[%clk 0:02:54.7]} 12. Bxd7+ {[%clk 0:02:45]} 12... Nbxd7 {[%clk
0:02:53.6]} 13. Bxf6 {[%clk 0:02:41]} 13... Nxf6 {[%clk 0:02:53.6]} 14. Qc6+
{[%clk 0:02:37.9]} 14... Nd7 {[%clk 0:02:48.9]} 15. Ne5 {[%clk 0:02:34.1]} 15...
Rc8 {[%clk 0:02:46.8]} 16. Qb5 {[%clk 0:02:18.6]} 16... Rc7 {[%clk 0:02:40]} 17.
Nxd7 {[%clk 0:02:17.5]} 17... Qxd7 {[%clk 0:02:39.6]} 18. Qxd7+ {[%clk
0:02:15.8]} 18... Rxd7 {[%clk 0:02:39.9]} 19. Rac1 {[%clk 0:02:15.5]} 19... Ke7
{[%clk 0:02:39.9]} 20. Rc6 {[%clk 0:02:15]} 20... Rhd8 {[%clk 0:02:37.5]} 21.
Rfc1 {[%clk 0:02:14.5]} 21... Kf6 {[%clk 0:02:36.2]} 22. Rc7 {[%clk 0:02:13.8]}
22... Ke7 {[%clk 0:02:34.4]} 23. Rxd7+ {[%clk 0:02:13.3]} 23... Rxd7 {[%clk
0:02:34.6]} 24. Rc8 {[%clk 0:02:09.5]} 24... Rd8 {[%clk 0:02:34.8]} 25. Rxd8
{[%clk 0:02:08.7]} 25... Kxd8 {[%clk 0:02:34.9]} 26. Kf1 {[%clk 0:02:08.6]}
26... Kd7 {[%clk 0:02:35.2]} 27. Ke2 {[%clk 0:02:08.4]} 27... Kc6 {[%clk
0:02:35.3]} 28. Kd3 {[%clk 0:02:08.1]} 28... Kb5 {[%clk 0:02:35.8]} 29. Kc3
{[%clk 0:02:07.9]} 29... a5 {[%clk 0:02:35.6]} 30. b3 {[%clk 0:02:07.7]} 30...
Kc6 {[%clk 0:02:34.9]} 31. a4 {[%clk 0:02:06.4]} 31... Kd6 {[%clk 0:02:33.5]}
32. f3 {[%clk 0:02:05.9]} 32... f6 {[%clk 0:02:33.2]} 33. e4 {[%clk 0:02:04.5]}
33... dxe4 {[%clk 0:02:31.2]} 34. fxe4 {[%clk 0:02:03.6]} 34... g6 {[%clk
0:02:28.8]} 35. Kc4 {[%clk 0:02:03.1]} 35... Kc7 {[%clk 0:02:01.7]} 36. Kb5
{[%clk 0:02:01.7]} 36... f5 {[%clk 0:01:55.8]} 37. e5 {[%clk 0:01:57.4]} 37...
g5 {[%clk 0:01:53.2]} 38. h3 {[%clk 0:01:56.4]} 38... h5 {[%clk 0:01:51.5]} 39.
g3 {[%clk 0:01:54.2]} 39... f4 {[%clk 0:01:50.8]} 40. Kc4 {[%clk 0:01:33.8]}
40... fxg3 {[%clk 0:01:48.6]} 41. Kd3 {[%clk 0:01:33]} 41... g2 {[%clk
0:01:48.5]} 42. Ke4 {[%clk 0:01:28.8]} 42... g1=Q {[%clk 0:01:48.4]} 43. Kd3
{[%clk 0:01:25.6]} 43... Qd1+ {[%clk 0:01:46.9]} 44. Kc4 {[%clk 0:01:24.9]}
44... Qc2+ {[%clk 0:01:45.6]} 45. Kb5 {[%clk 0:01:22.6]} 45... Qxb3+ {[%clk
0:01:45.8]} 46. Ka6 {[%clk 0:01:19.9]} 46... Qxa4 {[%clk 0:01:45.7]} 47. Ka7
{[%clk 0:01:16.2]} 47... Qd7 {[%clk 0:01:41.4]} 48. Ka6 {[%clk 0:01:15.3]} 48...
Kc6 {[%clk 0:01:40.4]} 49. d5+ {[%clk 0:01:08.9]} 49... exd5 {[%clk 0:01:39.9]}
50. e6 {[%clk 0:01:07.4]} 50... Qb7# {[%clk 0:01:40.5]} 0-1

[Event "Betsys MČR v online bleskovém šachu 2021"]
[Site "Chess.com"]
[Date "2021.04.17"]
[Round "8"]
[White "VojtechPlat"]
[Black "TheRigos"]
[Result "1-0"]
[WhiteElo "2848"]
[BlackElo "2565"]
[TimeControl "180+1"]
[EndTime "10:19:29 PDT"]
[Termination "Uživatel VojtechPlat zvítězil po vzdání soupeře"]

1. e4 {[%clk 0:03:00.9]} 1... f5 {[%clk 0:02:56.8]} 2. exf5 {[%clk 0:02:59.7]}
2... Nf6 {[%clk 0:02:57.2]} 3. Nc3 {[%clk 0:02:59.1]} 3... d5 {[%clk 0:02:57.8]}
4. Nf3 {[%clk 0:02:55]} 4... Bxf5 {[%clk 0:02:57.9]} 5. d4 {[%clk 0:02:54.2]}
5... c5 {[%clk 0:02:58.4]} 6. h3 {[%clk 0:02:48.3]} 6... Nc6 {[%clk 0:02:58.1]}
7. Be3 {[%clk 0:02:47.2]} 7... Bg6 {[%clk 0:02:51.8]} 8. Bb5 {[%clk 0:02:27.1]}
8... cxd4 {[%clk 0:02:42.2]} 9. Nxd4 {[%clk 0:02:25.8]} 9... Qd6 {[%clk
0:02:41.6]} 10. Nb3 {[%clk 0:02:14.3]} 10... e5 {[%clk 0:02:36.3]} 11. Bc5
{[%clk 0:02:13.2]} 11... Qe6 {[%clk 0:02:33]} 12. Bxf8 {[%clk 0:02:13]} 12...
Kxf8 {[%clk 0:02:23.9]} 13. O-O {[%clk 0:02:12.1]} 13... d4 {[%clk 0:02:18.9]}
14. Ne2 {[%clk 0:02:11.7]} 14... Rd8 {[%clk 0:01:55.1]} 15. f4 {[%clk
0:02:02.6]} 15... Bh5 {[%clk 0:01:38.8]} 16. Bxc6 {[%clk 0:01:59.6]} 16... bxc6
{[%clk 0:01:34.4]} 17. Qe1 {[%clk 0:01:55.2]} 17... Bxe2 {[%clk 0:01:26.9]} 18.
Qxe2 {[%clk 0:01:54.5]} 18... e4 {[%clk 0:01:27.8]} 19. Rad1 {[%clk 0:01:52]}
19... c5 {[%clk 0:01:18.9]} 20. Nxc5 {[%clk 0:01:50.5]} 20... Qxa2 {[%clk
0:01:17]} 21. f5 {[%clk 0:01:34.9]} 21... Qxb2 {[%clk 0:00:50.5]} 22. Qc4 {[%clk
0:01:23]} 22... Qc3 {[%clk 0:00:21]} 23. Qxc3 {[%clk 0:01:21.8]} 23... dxc3
{[%clk 0:00:21.4]} 24. Rxd8+ {[%clk 0:01:21]} 1-0

[Event "Betsys MČR v online bleskovém šachu 2021"]
[Site "Chess.com"]
[Date "2021.04.17"]
[Round "8"]
[White "TarantAnk"]
[Black "EliasD123"]
[Result "1-0"]
[WhiteElo "1728"]
[BlackElo "1317"]
[TimeControl "180+1"]
[EndTime "10:19:29 PDT"]
[Termination "Uživatel TarantAnk zvítězil po vzdání soupeře"]

1. e4 {[%clk 0:03:00.9]} 1... e5 {[%clk 0:02:59.1]} 2. Nf3 {[%clk 0:03:01.5]}
2... Nc6 {[%clk 0:02:59.1]} 3. Bc4 {[%clk 0:03:02]} 3... Nf6 {[%clk 0:02:58.7]}
4. Ng5 {[%clk 0:03:01.8]} 4... d5 {[%clk 0:02:58.7]} 5. exd5 {[%clk 0:03:02]}
5... Na5 {[%clk 0:02:59.3]} 6. Bb5+ {[%clk 0:03:02.6]} 6... c6 {[%clk
0:02:59.8]} 7. dxc6 {[%clk 0:03:03.2]} 7... bxc6 {[%clk 0:03:00.3]} 8. Bd3
{[%clk 0:03:03.7]} 8... h6 {[%clk 0:03:00.2]} 9. Ne4 {[%clk 0:03:03.7]} 9...
Nxe4 {[%clk 0:02:59.7]} 10. Bxe4 {[%clk 0:03:04.6]} 10... f5 {[%clk 0:02:59.3]}
11. Bf3 {[%clk 0:03:03.7]} 11... e4 {[%clk 0:02:58]} 12. Be2 {[%clk 0:03:03.8]}
12... Bc5 {[%clk 0:02:57.4]} 13. d3 {[%clk 0:03:01.3]} 13... O-O {[%clk
0:02:54.8]} 14. O-O {[%clk 0:02:55.9]} 14... Be6 {[%clk 0:02:48.5]} 15. dxe4
{[%clk 0:02:55]} 15... Qf6 {[%clk 0:02:46.4]} 16. exf5 {[%clk 0:02:43.7]} 16...
Bxf5 {[%clk 0:02:44]} 17. Bf3 {[%clk 0:02:33.1]} 17... Rad8 {[%clk 0:02:39.5]}
18. Qe1 {[%clk 0:02:32.6]} 18... Nc4 {[%clk 0:02:31.4]} 19. Qc3 {[%clk 0:02:28]}
19... Qxc3 {[%clk 0:02:22.4]} 20. Nxc3 {[%clk 0:02:27.4]} 20... Rfe8 {[%clk
0:02:19.5]} 21. Bxc6 {[%clk 0:02:22.7]} 21... Re6 {[%clk 0:02:18.4]} 22. Bd5
{[%clk 0:02:21.8]} 22... Rxd5 {[%clk 0:02:04.3]} 23. Nxd5 {[%clk 0:02:21.4]}
23... Bxc2 {[%clk 0:02:02.6]} 24. Bf4 {[%clk 0:02:00.9]} 24... Rg6 {[%clk
0:01:58.2]} 25. Bg3 {[%clk 0:01:55.7]} 25... Be4 {[%clk 0:01:48.9]} 26. Rfd1
{[%clk 0:01:50]} 26... Kh7 {[%clk 0:01:42.5]} 27. Rac1 {[%clk 0:01:42.1]} 27...
Nxb2 {[%clk 0:01:31.3]} 28. Rd2 {[%clk 0:01:41.3]} 28... Na4 {[%clk 0:01:30.5]}
29. Rc4 {[%clk 0:01:37.2]} 29... Ra6 {[%clk 0:00:44.5]} 30. Rxe4 {[%clk
0:01:34.4]} 30... Nb6 {[%clk 0:00:42.1]} 31. Nxb6 {[%clk 0:01:33.4]} 31... Rxb6
{[%clk 0:00:42.2]} 32. h3 {[%clk 0:01:31.7]} 32... a5 {[%clk 0:00:36.7]} 33. Rc2
{[%clk 0:01:30.8]} 33... Be7 {[%clk 0:00:34.8]} 34. Rxe7 {[%clk 0:01:30.2]} 1-0